bitfinex/quotes_SOLUSD_20250821
["timestamp","ask_amount","ask_price","bid_price","bid_amount"]
[1755773892769,6.74542719,184.64,184.63,0.03]
[1755773892968,48.68542719,184.64,184.63,0.03]
[1755773893584,67.32200711,184.64,184.63,0.03]
[1755773893765,74.99137756,184.64,184.63,0.03]
[1755773894167,74.9925604,184.64,184.63,0.03]
[1755773896977,100.9925604,184.64,184.63,0.03]
[1755773897373,100.99220078,184.64,184.63,0.03]
[1755773897774,100.99187049,184.64,184.63,0.03]
[1755773898176,74.99187049,184.64,184.63,0.03]
[1755773898586,207.49187049,184.64,184.63,0.03]
[1755773898878,0.28432314,184.63,184.62,0.03]
[1755773899081,47.03965992,184.63,184.62,0.03]
[1755773899704,15.84962524,184.63,184.62,0.03]
[1755773899921,58.43962524,184.63,184.62,0.03]
[1755773900283,72.03521925,184.63,184.62,0.03]
[1755773901165,76.57525393,184.63,184.62,0.03]
[1755773902310,72.03521925,184.63,184.62,0.03]
[1755773903204,29.95305768,184.63,184.62,0.03]
[1755773903386,71.89305768,184.63,184.62,0.03]
[1755773903728,30.09521925,184.63,184.62,0.03]
[1755773903885,72.03521925,184.63,184.62,0.03]
[1755773906512,72.02282534,184.63,184.62,0.03]
[1755773908818,98.02282534,184.63,184.62,0.03]
[1755773910419,96.63475757,184.63,184.62,0.03]
[1755773915120,96.6293629,184.63,184.62,0.03]
[1755773915914,96.62339157,184.63,184.62,0.03]
[1755773919131,0.14216157,184.62,184.61,0.03]
[1755773919456,15.08779756,184.62,184.61,0.03]
[1755773919605,28.68339157,184.62,184.61,0.03]
[1755773919948,31.51083847,184.62,184.61,0.03]
[1755773921042,0.14216157,184.61,184.6,0.03]
[1755773921237,66.91063028,184.61,184.6,0.03]
[1755773921539,57.02779756,184.61,184.6,0.03]
[1755773922235,57.02468758,184.61,184.6,0.03]
[1755773925220,52.99791368,184.61,184.6,0.03]
[1755773925422,57.01792172,184.61,184.6,0.03]
[1755773925620,57.01799286,184.61,184.6,0.03]
[1755773926029,57.0193535,184.61,184.6,0.03]
[1755773927329,13.73775558,184.59,184.58,0.03]
[1755773927533,39.87991715,184.57,184.56,0.03]
[1755773927729,95.96494751,184.57,184.56,0.03]
[1755773928139,91.94354326,184.57,184.56,0.03]
[1755773930229,50.00354326,184.57,184.56,0.03]
[1755773930637,91.94354326,184.57,184.56,0.03]
[1755773932747,96.66445289,184.57,184.56,0.03]
[1755773934547,0.28432314,184.56,184.52,0.67]
[1755773934846,16.35062533,184.54,184.53,0.77]
[1755773935257,19.96964865,184.54,184.53,0.77]
[1755773936854,16.35062533,184.54,184.53,0.77]
[1755773938030,16.35062533,184.54,184.53,0.1]
[1755773938230,19.97081365,184.54,184.53,0.1]
[1755773939141,19.97067937,184.54,184.53,0.1]
[1755773939857,61.91103418,184.54,184.53,0.77]
[1755773940159,64.73900965,184.54,184.53,0.77]
[1755773940659,6.73270746,184.54,184.53,0.77]
[1755773940834,2.82797547,184.54,184.53,0.77]
[1755773941032,2.47070818,184.59,184.53,3.24070818]
[1755773941243,2.8270054,184.57,184.54,0.67]
[1755773941448,41.94,184.56,184.54,0.67]
[1755773942154,41.94,184.55,184.54,0.67]
[1755773944346,2.8270054,184.57,184.54,0.67]
[1755773944548,41.94,184.56,184.54,0.67]
[1755773944999,2.8270054,184.57,184.55,2.47070818]
[1755773945133,2.47070818,184.62,184.56,2.47070818]
[1755773945338,44.76649744,184.61,184.57,3.14070818]
[1755773945545,47.23720562,184.61,184.58,0.67]
[1755773946461,48.62509389,184.61,184.58,0.67]
[1755773947343,3.85859645,184.6,184.58,0.67]
[1755773947658,41.94,184.59,184.58,0.67]
[1755773948963,3.85859645,184.6,184.58,0.67]
[1755773949265,41.94,184.59,184.58,0.67]
[1755773950047,2.82649744,184.61,184.58,0.67]
[1755773950239,41.94,184.6,184.58,4.52859645]
[1755773950545,41.94,184.6,184.59,0.67]
[1755773951539,41.92,184.6,184.59,0.67]
[1755773952867,2.88649744,184.61,184.59,0.67]
[1755773953068,41.92,184.6,184.58,3.85859645]
[1755773953764,41.92,184.6,184.59,0.67]
[1755773954271,2.88649744,184.61,184.59,4.52859645]
[1755773954446,2.88649744,184.61,184.6,0.67]
[1755773954643,2.88649744,184.61,184.6,4.52859645]
[1755773954644,44.80649744,184.61,184.6,4.52859645]
[1755773954843,2.88649744,184.61,184.6,4.52859645]
[1755773955150,44.80649744,184.61,184.6,4.52859645]
[1755773955959,2.88649744,184.61,184.6,4.52859645]
[1755773956267,44.80649744,184.61,184.6,4.52859645]
[1755773956783,44.80649744,184.61,184.6,0.67]
[1755773958175,44.80649744,184.61,184.59,4.52859645]
[1755773959061,44.80649744,184.61,184.6,0.67]
[1755773960477,2.88649744,184.61,184.6,4.52859645]
[1755773960788,41.98,184.61,184.6,4.52859645]
[1755773960950,0.06,184.61,184.6,4.52859645]
[1755773970286,0.06,184.61,184.6,3.13792074]
[1755773977291,0.06,184.61,184.6,2.46792074]
[1755773978477,0.06,184.61,184.6,3.13792074]
[1755773979574,0.06,184.61,184.6,2.46792074]
[1755773983177,0.06,184.61,184.59,42.954435]
[1755773983399,0.06,184.61,184.6,2.46792074]
[1755773991308,0.06,184.61,184.6,3.15792074]
[1755773992304,0.06,184.61,184.6,19.44058774]
[1755774000313,0.76,184.61,184.6,16.282667]
[1755774000606,0.76,184.61,184.57,79.8]
[1755774000607,0.76,184.61,184.59,2.46792074]
[1755774000810,0.06,184.61,184.6,16.75351475]
[1755774001016,0.06,184.63,184.6,16.75351475]
[1755774001017,0.06,184.63,184.62,26.0]
[1755774001184,0.06,184.65,184.63,2.46792074]
[1755774001387,0.06,184.66,184.65,13.59559401]
[1755774001606,0.06,184.68,184.67,26.0]
[1755774001912,0.06,184.7,184.67,42.06351475]
[1755774002110,0.06,184.74,184.67,42.06351475]
[1755774002111,0.06,184.74,184.7,26.0]
[1755774002283,0.76,184.74,184.73,28.46792074]
[1755774002486,0.06,184.74,184.73,26.0]
[1755774002688,0.06,184.74,184.72,2.46792074]
[1755774002887,2.52792074,184.74,184.73,2.467921]
[1755774003194,3.22792074,184.74,184.73,2.467921]
[1755774003406,0.76,184.74,184.73,2.467921]
[1755774003591,17.10783789,184.74,184.73,1.027921]
[1755774003794,45.37224388,184.74,184.69,2.46792074]
[1755774003983,0.68,184.73,184.67,26.0]
[1755774004295,0.06,184.74,184.72,3.85029011]
[1755774004488,0.06,184.74,184.73,4.54029011]
[1755774005413,0.06,184.74,184.73,3.85029011]
[1755774005708,0.74,184.74,184.71,3.85029011]
[1755774006016,3.85029011,184.72,184.67,10.0]
[1755774006317,0.96432314,184.71,184.61,0.69]
[1755774006496,3.85029011,184.69,184.64,3.85029011]
[1755774006704,0.68,184.68,184.64,3.85029011]
[1755774006887,3.85029011,184.69,184.63,29.85029011]
[1755774007212,3.85029011,184.69,184.62,0.69]
[1755774007213,3.85029011,184.65,184.6,13.85029011]
[1755774007426,4.53029011,184.64,184.6,10.0]
[1755774007720,3.85029011,184.62,184.56,3.88029011]
[1755774007916,3.85029011,184.59,184.56,10.03]
[1755774008106,4.13461325,184.57,184.56,0.03]
[1755774008487,4.13461325,184.57,184.54,0.03]
[1755774008788,4.13461325,184.55,184.54,0.03]
[1755774009099,46.17461325,184.55,184.54,0.03]
[1755774009288,46.82461325,184.55,184.54,0.03]
[1755774009709,42.97432314,184.55,184.54,0.03]
[1755774009907,0.65,184.55,184.54,0.03]
[1755774010123,42.69,184.58,184.54,0.03]
[1755774010411,46.54029011,184.58,184.54,0.03]
[1755774010608,0.65,184.57,184.54,0.03]
[1755774010827,4.50029011,184.57,184.54,0.03]
[1755774011030,4.50029011,184.56,184.54,0.03]
[1755774011192,0.65,184.56,184.54,0.03]
[1755774011395,0.65,184.55,184.54,0.03]
[1755774012411,42.71,184.55,184.54,0.03]
[1755774013082,42.06,184.55,184.54,0.03]
[1755774013512,0.28432314,184.59,184.54,0.03]
[1755774013685,42.06,184.58,184.54,0.03]
[1755774013891,42.71,184.58,184.54,0.03]
[1755774014611,42.06,184.57,184.54,3.88029011]
[1755774014792,42.06,184.56,184.54,0.72]
[1755774015107,42.06,184.56,184.55,3.85029011]
[1755774015311,42.06,184.56,184.54,4.57029011]
[1755774015511,42.06,184.56,184.54,3.88029011]
[1755774015899,42.06,184.56,184.54,0.03]
[1755774016097,42.71,184.56,184.54,0.03]
[1755774016290,0.65,184.55,184.54,0.03]
[1755774016711,42.06,184.56,184.54,0.03]
[1755774016912,45.91029011,184.56,184.54,0.03]
[1755774017097,3.85029011,184.56,184.54,0.03]
[1755774017303,42.08,184.55,184.54,0.71]
[1755774017503,42.08,184.55,184.54,26.71]
[1755774017908,42.08,184.55,184.54,0.71]
[1755774018108,42.08,184.55,184.54,0.03]
[1755774019017,42.08,184.56,184.54,4.56029011]
[1755774019217,42.08,184.56,184.54,3.88029011]
[1755774019522,42.08,184.56,184.55,0.68]
[1755774019692,3.85029011,184.6,184.55,4.53029011]
[1755774020049,42.08,184.59,184.56,0.68]
[1755774020725,42.08,184.58,184.56,0.68]
[1755774020903,42.08,184.58,184.57,0.68]
[1755774021101,3.85029011,184.62,184.57,4.53029011]
[1755774021293,42.08,184.61,184.58,0.68]
[1755774021488,42.08,184.61,184.57,3.85029011]
[1755774021723,42.08,184.61,184.57,4.53029011]
[1755774022028,42.08,184.61,184.58,0.68]
[1755774022622,4.50029011,184.63,184.58,4.53029011]
[1755774022800,42.08,184.62,184.59,4.53029011]
[1755774022997,42.08,184.61,184.6,26.0]
[1755774023621,42.08,184.61,184.54,26.71]
[1755774023622,42.73,184.61,184.54,26.71]
[1755774023801,42.73,184.61,184.57,3.85029011]
[1755774024002,42.08,184.61,184.59,3.85029011]
[1755774024526,0.28432314,184.67,184.6,30.53029011]
[1755774024527,0.65,184.67,184.6,30.53029011]
[1755774024710,42.08,184.66,184.6,26.68]
[1755774024904,45.93029011,184.66,184.61,3.85029011]
[1755774025119,44.90523189,184.66,184.62,29.85029011]
[1755774025510,44.90523189,184.66,184.62,26.0]
[1755774025511,49.405522,184.66,184.62,26.0]
[1755774025706,44.90523189,184.66,184.62,26.0]
[1755774025921,44.90523189,184.66,184.63,0.68]
[1755774026504,45.55523189,184.66,184.62,26.0]
[1755774026827,49.405522,184.66,184.62,26.0]
[1755774027209,49.405522,184.66,184.61,4.53029011]
[1755774027414,42.06,184.65,184.62,26.0]
[1755774029128,42.06,184.65,184.62,30.53029011]
[1755774029433,42.06,184.65,184.59,26.0]
[1755774029621,42.06,184.65,184.62,3.85029011]
[1755774029815,42.06,184.65,184.63,4.53029011]
[1755774030030,2.82523189,184.66,184.63,4.53029011]
[1755774030211,42.04,184.65,184.63,4.53029011]
[1755774030406,2.82523189,184.66,184.64,3.85029011]
[1755774030614,44.86523189,184.66,184.65,3.85029011]
[1755774030813,44.86523189,184.66,184.65,4.53029011]
[1755774031518,44.86523189,184.66,184.65,0.68]
[1755774031718,44.86523189,184.66,184.64,29.85029011]
[1755774031907,44.86523189,184.66,184.64,30.53029011]
[1755774032736,44.86523189,184.66,184.65,26.0]
[1755774033237,44.86523189,184.66,184.65,0.68]
[1755774033441,42.04,184.66,184.65,0.68]
[1755774033601,42.04,184.66,184.65,4.53029011]
[1755774033804,42.04,184.66,184.65,0.68]
[1755774034018,42.04,184.66,184.65,4.53029011]
[1755774034415,42.04,184.68,184.65,4.53029011]
[1755774034617,42.04,184.68,184.66,3.85029011]
[1755774034938,2.88488655,184.7,184.66,3.85029011]
[1755774035112,2.88488655,184.7,184.68,3.85029011]
[1755774035313,2.88488655,184.7,184.67,0.68]
[1755774035314,42.04,184.69,184.67,0.68]
[1755774035522,42.04,184.69,184.67,4.53029011]
[1755774035833,42.04,184.69,184.66,3.85029011]
[1755774036135,42.04,184.69,184.66,4.53029011]
[1755774037046,42.04,184.69,184.65,16.279133]
[1755774037047,2.88488655,184.7,184.68,29.85029011]
[1755774037248,0.06,184.7,184.69,3.85029011]
[1755774037561,0.06,184.7,184.69,0.68]
[1755774037753,0.06,184.7,184.69,4.53029011]
[1755774038114,0.06,184.7,184.69,0.68]
[1755774038315,0.06,184.7,184.69,4.53029011]
[1755774039964,0.06,184.7,184.68,0.68]
[1755774040166,0.06,184.7,184.69,30.53029011]
[1755774041045,0.06,184.7,184.69,29.85029011]
[1755774041562,0.06,184.7,184.69,26.0]
[1755774041767,0.71,184.7,184.64,26.68]
[1755774041946,0.71,184.7,184.68,26.0]
[1755774042268,0.06,184.7,184.68,26.0]
[1755774042440,42.04,184.69,184.68,29.85029011]
[1755774043148,42.04,184.69,184.68,30.53029011]
[1755774043355,42.04,184.69,184.68,26.68]
[1755774043880,42.04,184.69,184.68,0.68]
[1755774044248,42.04,184.69,184.68,26.68]
[1755774044568,42.04,184.69,184.68,26.0]
[1755774044872,42.04,184.69,184.68,26.68]
[1755774046749,42.04,184.69,184.68,26.0]
[1755774047171,42.04,184.69,184.68,4.54029011]
[1755774047468,42.04,184.69,184.68,26.69]
[1755774047850,42.04,184.69,184.68,26.0]
[1755774048879,46.54029011,184.69,184.61,80.49]
[1755774049064,3.85029011,184.66,184.62,16.2809]
[1755774049275,42.0,184.66,184.62,0.69]
[1755774049584,42.0,184.66,184.63,0.69]
[1755774049882,42.0,184.66,184.64,26.0]
[1755774050245,42.0,184.66,184.64,26.69]
[1755774050667,0.71,184.69,184.65,0.69]
[1755774050668,3.91029011,184.69,184.65,0.69]
[1755774050970,42.0,184.67,184.65,0.69]
[1755774051164,42.0,184.67,184.64,26.0]
[1755774051477,42.0,184.67,184.64,26.69]
[1755774051770,42.0,184.67,184.65,0.69]
[1755774051968,42.0,184.67,184.64,26.69]
[1755774052355,0.06,184.69,184.65,30.54029011]
[1755774052545,42.0,184.68,184.66,3.85029011]
[1755774052747,42.06,184.69,184.66,0.69]
[1755774054480,42.06,184.69,184.65,3.85029011]
[1755774054650,42.06,184.69,184.65,4.54029011]
[1755774054850,42.06,184.69,184.65,3.85029011]
[1755774055069,42.06,184.69,184.65,4.54029011]
[1755774055268,0.06,184.69,184.65,4.54029011]
[1755774055463,42.04,184.69,184.65,4.54029011]
[1755774056376,45.89029011,184.69,184.65,0.69]
[1755774056884,4.50029011,184.68,184.64,16.279133]
[1755774057390,41.98,184.67,184.64,16.279133]
[1755774057801,41.98,184.67,184.64,0.69]
[1755774058186,41.98,184.67,184.65,16.2809]
[1755774058906,41.98,184.67,184.65,16.9709]
[1755774059202,41.98,184.67,184.65,16.2809]
[1755774059497,4.56029011,184.69,184.65,16.9709]
[1755774059800,3.91029011,184.69,184.65,16.9709]
[1755774060100,41.98,184.68,184.65,16.9709]
[1755774060311,41.98,184.68,184.65,0.69]
[1755774060612,42.04,184.69,184.66,4.54029011]
[1755774060817,42.04,184.69,184.67,0.69]
[1755774061452,42.04,184.69,184.68,4.54029011]
[1755774061650,0.06,184.69,184.68,20.81765711]
[1755774063390,0.06,184.69,184.68,42.277367]
[1755774063591,0.06,184.69,184.68,42.967367]
[1755774064227,0.06,184.69,184.68,46.81765711]
[1755774065224,0.06,184.69,184.68,26.2324286]
[1755774065710,0.06,184.69,184.68,39.82802261]
[1755774067300,0.06,184.69,184.68,34.41325112]
[1755774068346,0.06,184.69,184.68,16.967367]
[1755774068506,0.06,184.69,184.68,20.81765711]
[1755774069330,0.06,184.69,184.68,39.82802261]
[1755774070245,0.06,184.69,184.68,40.11234575]
[1755774070428,0.06,184.69,184.68,119.91234575]
[1755774071224,0.06,184.69,184.68,129.91234575]
[1755774073025,0.06,184.69,184.68,124.49757426]
[1755774073836,0.06,184.69,184.68,129.91234575]
[1755774074212,0.06,184.69,184.68,161.91234575]
[1755774074512,0.06,184.69,184.68,175.76263586]
[1755774079443,0.06,184.69,184.68,181.59089282]
[1755774079646,0.06,184.7,184.69,29.70817411]
[1755774079836,0.06,184.7,184.69,114.60991205]
[1755774080035,0.06,184.7,184.69,114.06846422]
[1755774080229,0.06,184.7,184.69,116.23748522]
[1755774080438,0.06,184.7,184.69,121.78315509]
[1755774080832,0.06,184.71,184.7,27.73020726]
[1755774081033,0.06,184.71,184.7,70.94162577]
[1755774081238,0.06,184.71,184.7,82.18406789]
[1755774081435,0.06,184.72,184.71,23.87991715]
[1755774081756,0.06,184.72,184.71,28.44020726]
[1755774081924,0.06,184.72,184.71,33.55846422]
[1755774082126,0.06,184.72,184.71,36.43725022]
[1755774082437,0.2,184.8,184.78,0.28432314]
[1755774082638,0.2,184.8,184.79,46.13461325]
[1755774082954,0.2,184.8,184.79,59.44588412]
[1755774083651,0.2,184.8,184.79,61.61431712]
[1755774084657,0.2,184.8,184.79,62.32431712]
[1755774084952,0.2,184.8,184.79,68.0201885]
[1755774085334,0.2,184.8,184.79,62.60864026]
[1755774085547,0.2,184.8,184.79,61.89864026]
[1755774085739,0.2,184.8,184.79,61.59431712]
[1755774085927,0.85,184.8,184.79,47.99872311]
[1755774086130,0.2,184.8,184.79,47.99872311]
[1755774086631,0.2,184.8,184.79,6.01872311]
[1755774086831,0.2,184.8,184.79,48.01872311]
[1755774087353,0.2,184.8,184.79,62.32431712]
[1755774089064,0.2,184.8,184.79,62.60864026]
[1755774091154,0.2,184.8,184.79,62.56864026]
[1755774091461,0.2,184.8,184.79,61.85864026]
[1755774091864,0.2,184.8,184.79,19.89864026]
[1755774092060,0.2,184.8,184.79,61.85864026]
[1755774092369,0.2,184.8,184.79,62.56864026]
[1755774092533,0.2,184.8,184.79,67.9801885]
[1755774093344,0.2,184.8,184.79,62.56864026]
[1755774095468,0.2,184.8,184.79,62.54864026]
[1755774095847,0.2,184.8,184.79,62.52864026]
[1755774097044,0.2,184.8,184.79,67.9401885]
[1755774097467,0.2,184.8,184.79,147.7401885]
[1755774098173,0.2,184.8,184.79,157.7401885]
[1755774100571,0.2,184.8,184.79,95.84835015]
[1755774100779,0.2,184.8,184.79,141.45647869]
[1755774100981,0.2,184.8,184.79,142.16647869]
[1755774101472,0.2,184.8,184.79,142.30864026]
[1755774101672,0.2,184.8,184.79,147.7201885]
[1755774102057,0.2,184.8,184.79,157.7201885]
[1755774102569,0.2,184.8,184.79,152.30864026]
[1755774102759,0.2,184.8,184.79,157.7201885]
[1755774103357,0.2,184.8,184.79,147.7201885]
[1755774103663,0.2,184.8,184.79,99.69864026]
[1755774103864,0.2,184.8,184.79,141.59864026]
[1755774106958,0.2,184.8,184.79,99.69864026]
[1755774107161,0.2,184.8,184.79,141.57864026]
[1755774107784,0.2,184.8,184.79,100.37864026]
[1755774107980,0.2,184.8,184.79,142.25864026]
[1755774108382,0.2,184.8,184.79,147.6701885]
[1755774108690,0.2,184.82,184.81,13.87991715]
[1755774108890,0.2,184.82,184.81,59.61020726]
[1755774109188,0.2,184.83,184.81,59.61020726]
[1755774109189,0.2,184.83,184.82,23.87991715]
[1755774109365,0.2,184.83,184.82,114.5795312]
[1755774109683,0.2,184.83,184.82,114.03846422]
[1755774111276,0.2,184.83,184.82,119.44913406]
[1755774111486,0.2,184.83,184.82,121.61686206]
[1755774119079,0.2,184.84,184.83,103.47991715]
[1755774119278,0.2,184.84,184.83,150.39124497]
[1755774119599,0.2,184.84,184.83,149.85020726]
[1755774119764,0.2,184.84,184.83,99.49770026]
[1755774120100,0.2,184.84,184.83,141.05337712]
[1755774120400,0.2,184.84,184.83,99.21337712]
[1755774120569,0.85,184.84,184.83,81.767493]
[1755774120764,0.85,184.84,184.83,123.607493]
[1755774120971,0.85,184.84,184.83,44.007493]
[1755774121179,0.85,184.84,184.83,2.167493]
[1755774121389,0.85,184.84,184.83,44.007493]
[1755774122881,0.2,184.84,184.83,61.45337712]
[1755774123072,0.2,184.84,184.83,57.60308701]
[1755774123271,0.85,184.84,184.83,57.60308701]
[1755774124179,0.85,184.84,184.83,2.167493]
[1755774124386,4.70029011,184.84,184.83,2.167493]
[1755774125194,0.85,184.84,184.83,2.167493]
[1755774125509,4.70029011,184.84,184.83,2.167493]
[1755774125993,0.85,184.84,184.83,2.167493]
[1755774126181,4.70029011,184.84,184.83,2.167493]
[1755774126597,0.85,184.84,184.83,2.167493]
[1755774127469,4.70029011,184.84,184.83,2.167493]
[1755774127893,0.85,184.84,184.83,2.167493]
[1755774128277,4.70029011,184.84,184.83,2.167493]
[1755774128684,4.70029011,184.84,184.83,3.156764]
[1755774129282,0.2,184.84,184.83,3.156764]
[1755774129591,0.85,184.84,184.83,3.156764]
[1755774130195,4.70029011,184.84,184.83,0.989271]
[1755774131904,0.85,184.84,184.83,0.989271]
[1755774132101,4.70029011,184.84,184.83,0.989271]
[1755774133387,0.2,184.84,184.83,0.989271]
[1755774134004,0.85,184.84,184.83,0.989271]
[1755774134202,4.70029011,184.84,184.83,0.989271]
[1755774139696,18.58020726,184.84,184.76,4.70029]
[1755774139902,0.28432314,184.82,184.76,4.70029]
[1755774140212,3.85029011,184.77,184.74,0.03]
[1755774140412,0.65,184.81,184.74,26.03]
[1755774140611,3.85029011,184.75,184.74,26.03]
[1755774140940,3.85029011,184.75,184.74,0.03]
[1755774141301,0.28432314,184.82,184.74,26.75]
[1755774141530,3.85029011,184.78,184.76,26.0]
[1755774141725,3.85029011,184.79,184.77,0.72]
[1755774141932,3.85029011,184.78,184.77,0.72]
[1755774142227,3.85029011,184.78,184.76,26.0]
[1755774143001,3.85029011,184.78,184.76,26.72]
[1755774143198,3.85029011,184.78,184.77,0.72]
[1755774143427,3.85029011,184.78,184.76,29.85029]
[1755774143819,4.50029011,184.77,184.76,3.85029]
[1755774144220,3.85029011,184.77,184.76,3.85029]
[1755774144538,3.85029011,184.77,184.75,0.72]
[1755774144720,3.85029011,184.77,184.75,4.57029]
[1755774144928,3.85029011,184.79,184.76,0.72]
[1755774145234,3.85029011,184.79,184.77,0.72]
[1755774146236,3.85029011,184.79,184.75,4.57029]
[1755774146411,3.85029011,184.77,184.76,26.0]
[1755774146821,3.85029011,184.78,184.76,26.0]
[1755774147135,3.85029011,184.78,184.75,30.57029]
[1755774147325,3.85029011,184.77,184.76,26.0]
[1755774147822,0.2,184.84,184.76,26.72]
[1755774148028,3.85029011,184.78,184.76,26.72]
[1755774148413,0.65,184.81,184.76,26.72]
[1755774148614,3.85029011,184.78,184.76,26.72]
[1755774149222,3.85029011,184.78,184.76,26.0]
[1755774149425,3.85029011,184.77,184.76,26.0]
[1755774149628,4.50029011,184.77,184.74,0.03]
[1755774149831,3.85029011,184.75,184.74,0.03]
[1755774151930,2.82365806,184.77,184.74,26.75]
[1755774152128,3.85029011,184.79,184.75,0.72]
[1755774152443,0.65,184.82,184.75,26.72]
[1755774152444,3.85029011,184.78,184.75,26.72]
[1755774152630,3.85029011,184.78,184.76,0.72]
[1755774152947,3.85029011,184.78,184.77,0.72]
[1755774153922,3.85029011,184.79,184.77,0.72]
[1755774154149,4.50029011,184.78,184.75,26.0]
[1755774154321,3.85029011,184.76,184.75,26.0]
[1755774154518,0.65,184.8,184.75,26.0]
[1755774154714,3.85029011,184.76,184.75,26.0]
[1755774155147,0.65,184.81,184.75,26.72]
[1755774155372,3.47306228,184.83,184.76,0.72]
[1755774155648,3.85029011,184.79,184.76,0.72]
[1755774155938,3.85029011,184.79,184.77,0.72]
[1755774157319,3.47306228,184.83,184.75,26.0]
[1755774157320,4.50029011,184.78,184.75,26.0]
[1755774157556,3.85029011,184.76,184.75,26.0]
[1755774159445,3.85029011,184.76,184.75,26.72]
[1755774159945,3.85029011,184.78,184.75,26.72]
[1755774160257,3.85029011,184.79,184.76,26.72]
[1755774160429,3.85029011,184.77,184.75,3.85029]
[1755774160745,3.85029011,184.76,184.74,0.03]
[1755774160937,0.65,184.79,184.74,0.03]
[1755774161131,3.85029011,184.75,184.74,0.75]
[1755774161444,3.85029011,184.76,184.74,26.75]
[1755774161645,3.85029011,184.77,184.75,0.72]
[1755774162421,3.85029011,184.76,184.75,0.72]
[1755774162885,4.50029011,184.76,184.74,0.03]
[1755774163025,3.85029011,184.75,184.74,0.03]
[1755774163230,4.50029011,184.75,184.74,0.03]
[1755774164358,3.85029011,184.75,184.74,0.03]
[1755774164954,3.85029011,184.75,184.74,0.75]
[1755774166174,0.65,184.8,184.74,0.75]
[1755774166453,3.85029011,184.75,184.74,0.03]
[1755774166666,4.50029011,184.75,184.74,0.03]
[1755774166859,3.85029011,184.75,184.74,0.03]
[1755774167262,4.50029011,184.75,184.74,0.03]
[1755774167466,3.85029011,184.75,184.74,0.03]
[1755774170056,3.85029011,184.76,184.74,0.69]
[1755774170564,0.1,184.8,184.75,0.66]
[1755774170739,3.85029011,184.76,184.75,0.66]
[1755774170939,2.98306228,184.83,184.75,0.66]
[1755774171165,3.85029011,184.78,184.75,0.66]
[1755774171856,3.85029011,184.78,184.76,0.66]
[1755774172272,3.85029011,184.78,184.77,0.66]
[1755774172654,3.85029011,184.78,184.74,29.88029]
[1755774172868,3.85029011,184.77,184.75,0.66]
[1755774173367,3.85029011,184.77,184.76,0.66]
[1755774174240,3.85029011,184.77,184.75,26.0]
[1755774174457,3.85029011,184.77,184.76,0.66]
[1755774174754,0.65,184.81,184.76,26.66]
[1755774174954,3.85029011,184.77,184.76,26.66]
[1755774176167,2.88306228,184.83,184.76,0.66]
[1755774176373,3.85029011,184.82,184.77,3.85029011]
[1755774176673,3.91029011,184.83,184.79,26.0]
[1755774176850,3.91029011,184.83,184.8,0.66]
[1755774177172,3.91029011,184.83,184.81,26.66]
[1755774177949,3.91029011,184.83,184.81,30.57029]
[1755774178374,0.06,184.83,184.81,30.57029]
[1755774178879,0.06,184.83,184.82,0.66]
[1755774179181,0.06,184.83,184.81,30.57029]
[1755774179672,0.06,184.83,184.81,29.91029]
[1755774179881,4.50029011,184.82,184.77,26.0]